[Event "Late-Titled-Tuesday-Blitz-March-05-2024"]
[Site "Chess.com"]
[Date "2024.03.05"]
[Round "1"]
[White "Zq1"]
[Black "Hudijegszid"]
[Result "0-1"]
[WhiteElo "2612"]
[BlackElo "2339"]
[TimeControl "180+1"]
[EndTime "14:06:16 PST"]
[Termination "Hudijegszid won by resignation"]

1. d4 {[%clk 0:03:00.9]} 1... Nf6 {[%clk 0:02:58.6]} 2. c4 {[%clk 0:03:00.5]}
2... e6 {[%clk 0:02:59.1]} 3. Nf3 {[%clk 0:02:59.7]} 3... Bb4+ {[%clk
0:02:59.1]} 4. Bd2 {[%clk 0:02:59.3]} 4... Bxd2+ {[%clk 0:02:59.2]} 5. Qxd2
{[%clk 0:02:59.5]} 5... d5 {[%clk 0:02:58.5]} 6. Nc3 {[%clk 0:02:59.3]} 6... O-O
{[%clk 0:02:57.6]} 7. e3 {[%clk 0:02:59]} 7... Qe7 {[%clk 0:02:57]} 8. Rc1
{[%clk 0:02:58.5]} 8... Nbd7 {[%clk 0:02:56.7]} 9. cxd5 {[%clk 0:02:57.4]} 9...
exd5 {[%clk 0:02:56.4]} 10. Be2 {[%clk 0:02:57.1]} 10... c6 {[%clk 0:02:56.5]}
11. O-O {[%clk 0:02:56.5]} 11... Re8 {[%clk 0:02:56.2]} 12. h3 {[%clk
0:02:55.9]} 12... Nf8 {[%clk 0:02:55.3]} 13. a3 {[%clk 0:02:55.7]} 13... a5
{[%clk 0:02:47.2]} 14. Na4 {[%clk 0:02:53.5]} 14... Ne4 {[%clk 0:02:29.3]} 15.
Qc2 {[%clk 0:02:49.5]} 15... Bf5 {[%clk 0:02:30.2]} 16. Qb3 {[%clk 0:02:45.2]}
16... g5 {[%clk 0:02:17.2]} 17. Rfd1 {[%clk 0:02:19.3]} 17... Ng6 {[%clk
0:02:09.3]} 18. Nc5 {[%clk 0:02:15.1]} 18... Nxc5 {[%clk 0:02:05.3]} 19. dxc5
{[%clk 0:02:10.4]} 19... Rab8 {[%clk 0:01:00.3]} 20. Qc3 {[%clk 0:02:07.2]}
20... a4 {[%clk 0:00:55.3]} 21. Rd4 {[%clk 0:02:01.4]} 21... h5 {[%clk
0:00:50.1]} 22. Rxa4 {[%clk 0:01:56.8]} 22... g4 {[%clk 0:00:46.7]} 23. Nd4
{[%clk 0:01:56.5]} 23... Bd7 {[%clk 0:00:45.7]} 24. hxg4 {[%clk 0:01:50.1]}
24... hxg4 {[%clk 0:00:46.6]} 25. g3 {[%clk 0:01:40.3]} 25... Ne5 {[%clk
0:00:39.3]} 26. Kg2 {[%clk 0:01:32.5]} 26... Kg7 {[%clk 0:00:39.1]} 27. Rh1
{[%clk 0:01:29.2]} 27... Rh8 {[%clk 0:00:38.4]} 28. Rxh8 {[%clk 0:01:25.9]}
28... Rxh8 {[%clk 0:00:39.3]} 29. Ra7 {[%clk 0:01:24.7]} 29... Qg5 {[%clk
0:00:38.9]} 30. f4 {[%clk 0:00:57.3]} 30... Qh5 {[%clk 0:00:39]} 31. Kf2 {[%clk
0:00:54.8]} 31... Qh1 {[%clk 0:00:35.2]} 32. Bf1 {[%clk 0:00:52.6]} 32... Rh2+
{[%clk 0:00:26.7]} 33. Ke1 {[%clk 0:00:52.5]} 33... Qe4 {[%clk 0:00:25.8]} 34.
Nxc6 {[%clk 0:00:48]} 34... Qb1+ {[%clk 0:00:25.1]} 0-1

[Event "Late-Titled-Tuesday-Blitz-March-05-2024"]
[Site "Chess.com"]
[Date "2024.03.05"]
[Round "1"]
[White "XeresLt"]
[Black "kenta1234"]
[Result "0-1"]
[WhiteElo "2475"]
[BlackElo "2808"]
[TimeControl "180+1"]
[EndTime "14:06:20 PST"]
[Termination "kenta1234 won by resignation"]

1. e4 {[%clk 0:02:58.4]} 1... e5 {[%clk 0:02:59]} 2. Nf3 {[%clk 0:02:58.3]} 2...
Nc6 {[%clk 0:02:59]} 3. Bc4 {[%clk 0:02:58.1]} 3... Nf6 {[%clk 0:02:59.1]} 4. d3
{[%clk 0:02:57.8]} 4... Bc5 {[%clk 0:02:59.8]} 5. O-O {[%clk 0:02:57.8]} 5... d6
{[%clk 0:03:00.1]} 6. c3 {[%clk 0:02:57.8]} 6... a6 {[%clk 0:02:59.7]} 7. a4
{[%clk 0:02:56.9]} 7... h6 {[%clk 0:02:59.6]} 8. Re1 {[%clk 0:02:49.9]} 8... Ba7
{[%clk 0:02:58.2]} 9. b4 {[%clk 0:02:47.7]} 9... g5 {[%clk 0:02:57.5]} 10. Ra2
{[%clk 0:02:33.1]} 10... g4 {[%clk 0:02:54.9]} 11. Nfd2 {[%clk 0:02:31.7]} 11...
h5 {[%clk 0:02:53.6]} 12. Nf1 {[%clk 0:02:29.1]} 12... h4 {[%clk 0:02:53.4]} 13.
Be3 {[%clk 0:02:29.3]} 13... Rg8 {[%clk 0:02:46.3]} 14. Bxa7 {[%clk 0:02:27.9]}
14... Rxa7 {[%clk 0:02:47.2]} 15. Ne3 {[%clk 0:02:24.4]} 15... Kf8 {[%clk
0:02:37.2]} 16. Qb3 {[%clk 0:02:18.1]} 16... Qe7 {[%clk 0:02:09.8]} 17. Nd5
{[%clk 0:02:07]} 17... Nxd5 {[%clk 0:02:04.7]} 18. exd5 {[%clk 0:02:03.6]} 18...
Nb8 {[%clk 0:02:04.6]} 19. d4 {[%clk 0:02:03.9]} 19... f6 {[%clk 0:02:03.9]} 20.
Rae2 {[%clk 0:01:59]} 20... Bf5 {[%clk 0:01:53.6]} 21. Nd2 {[%clk 0:01:57.2]}
21... Nd7 {[%clk 0:01:44.5]} 22. f4 {[%clk 0:01:54.5]} 22... gxf3 {[%clk
0:01:31.6]} 23. Nxf3 {[%clk 0:01:54.6]} 23... h3 {[%clk 0:01:31.9]} 24. Nh4
{[%clk 0:01:40.7]} 24... Bh7 {[%clk 0:01:26.4]} 25. Rf1 {[%clk 0:01:34.4]} 25...
hxg2 {[%clk 0:01:24.5]} 26. Rxg2 {[%clk 0:01:33.2]} 26... Rxg2+ {[%clk
0:01:24.2]} 27. Nxg2 {[%clk 0:01:33.5]} 27... Qg7 {[%clk 0:01:24.6]} 28. Qd1
{[%clk 0:01:30]} 28... Ke7 {[%clk 0:01:21.7]} 29. Bd3 {[%clk 0:01:28.8]} 29...
Ra8 {[%clk 0:01:17.3]} 30. Bxh7 {[%clk 0:01:28.2]} 30... Qxh7 {[%clk 0:01:18.2]}
31. Qg4 {[%clk 0:01:26.8]} 31... Rg8 {[%clk 0:01:15.6]} 32. Qe6+ {[%clk
0:01:27]} 32... Kd8 {[%clk 0:01:16.2]} 33. Kh1 {[%clk 0:01:21.7]} 33... Qg6
{[%clk 0:01:08.6]} 34. Nh4 {[%clk 0:01:16]} 34... Qe4+ {[%clk 0:01:06.6]} 35.
Nf3 {[%clk 0:01:15.9]} 35... Qg4 {[%clk 0:00:56.3]} 36. Qxg4 {[%clk 0:01:07.4]}
36... Rxg4 {[%clk 0:00:56.7]} 37. h3 {[%clk 0:01:06]} 37... Rf4 {[%clk
0:00:53.6]} 38. Kg2 {[%clk 0:01:06.3]} 38... Nb6 {[%clk 0:00:52.6]} 39. dxe5
{[%clk 0:01:02.3]} 39... fxe5 {[%clk 0:00:51.7]} 40. Rd1 {[%clk 0:00:54.1]}
40... Nxa4 {[%clk 0:00:50.9]} 41. c4 {[%clk 0:00:53.2]} 41... Rxc4 {[%clk
0:00:49.5]} 42. h4 {[%clk 0:00:53.5]} 42... Ke7 {[%clk 0:00:45.3]} 43. Kg3
{[%clk 0:00:51.6]} 43... Nc3 {[%clk 0:00:43.2]} 44. Rd2 {[%clk 0:00:49.2]} 44...
Ne4+ {[%clk 0:00:43.3]} 0-1

[Event "Late-Titled-Tuesday-Blitz-March-05-2024"]
[Site "Chess.com"]
[Date "2024.03.05"]
[Round "1"]
[White "bazar-wokzal"]
[Black "rionelG"]
[Result "1-0"]
[WhiteElo "2585"]
[BlackElo "2220"]
[TimeControl "180+1"]
[EndTime "14:06:22 PST"]
[Termination "bazar-wokzal won by resignation"]

1. e4 {[%clk 0:02:52.4]} 1... c5 {[%clk 0:02:59.5]} 2. c3 {[%clk 0:02:52.3]}
2... Nf6 {[%clk 0:02:53.9]} 3. e5 {[%clk 0:02:52.6]} 3... Nd5 {[%clk 0:02:54.2]}
4. d4 {[%clk 0:02:53]} 4... cxd4 {[%clk 0:02:54.6]} 5. cxd4 {[%clk 0:02:53.4]}
5... d6 {[%clk 0:02:55.2]} 6. Bc4 {[%clk 0:02:52.6]} 6... Nb6 {[%clk 0:02:54.7]}
7. Bb3 {[%clk 0:02:52.5]} 7... e6 {[%clk 0:02:54.1]} 8. Nf3 {[%clk 0:02:51.3]}
8... Nc6 {[%clk 0:02:52.8]} 9. Qe2 {[%clk 0:02:46.6]} 9... dxe5 {[%clk
0:02:44.8]} 10. dxe5 {[%clk 0:02:46.1]} 10... Be7 {[%clk 0:02:32.5]} 11. Nc3
{[%clk 0:02:44.3]} 11... O-O {[%clk 0:02:26.4]} 12. h4 {[%clk 0:02:36.5]} 12...
Nd4 {[%clk 0:02:07.9]} 13. Nxd4 {[%clk 0:02:34.5]} 13... Qxd4 {[%clk 0:02:08.8]}
14. Bg5 {[%clk 0:02:29.5]} 14... Bb4 {[%clk 0:02:04.8]} 15. Rh3 {[%clk
0:02:21.3]} 15... Nd5 {[%clk 0:02:02.7]} 16. Rd1 {[%clk 0:02:20.3]} 16... Bxc3+
{[%clk 0:01:23.9]} 17. bxc3 {[%clk 0:02:19.2]} 17... Qc5 {[%clk 0:01:24.2]} 18.
Bc2 {[%clk 0:01:54.4]} 18... Bd7 {[%clk 0:00:36.8]} 19. Qe4 {[%clk 0:01:42.1]}
19... g6 {[%clk 0:00:36.6]} 20. h5 {[%clk 0:00:52.5]} 20... Nxc3 {[%clk
0:00:24.2]} 21. Qh4 {[%clk 0:00:46.4]} 21... Nxd1 {[%clk 0:00:13.4]} 22. hxg6
{[%clk 0:00:43.4]} 22... Qxf2+ {[%clk 0:00:03.7]} 23. Qxf2 {[%clk 0:00:42.6]}
23... Nxf2 {[%clk 0:00:04.6]} 24. gxh7+ {[%clk 0:00:41.7]} 1-0

[Event "Late-Titled-Tuesday-Blitz-March-05-2024"]
[Site "Chess.com"]
[Date "2024.03.05"]
[Round "1"]
[White "Superfelix"]
[Black "kalxandria"]
[Result "1/2-1/2"]
[WhiteElo "2552"]
[BlackElo "2168"]
[TimeControl "180+1"]
[EndTime "14:06:22 PST"]
[Termination "Game drawn by agreement"]

1. e4 {[%clk 0:02:59.8]} 1... e6 {[%clk 0:02:58.7]} 2. d4 {[%clk 0:02:59.4]}
2... d5 {[%clk 0:02:57.9]} 3. Bd3 {[%clk 0:02:57.5]} 3... c5 {[%clk 0:02:53]} 4.
exd5 {[%clk 0:02:56.2]} 4... Qxd5 {[%clk 0:02:49.3]} 5. Nf3 {[%clk 0:02:55.3]}
5... cxd4 {[%clk 0:02:45]} 6. O-O {[%clk 0:02:55]} 6... Nc6 {[%clk 0:02:42.6]}
7. c3 {[%clk 0:02:54.4]} 7... Bc5 {[%clk 0:02:30.1]} 8. cxd4 {[%clk 0:02:51.1]}
8... Nxd4 {[%clk 0:02:28.6]} 9. Nxd4 {[%clk 0:02:48.9]} 9... Bxd4 {[%clk
0:02:22.7]} 10. Nc3 {[%clk 0:02:45.1]} 10... Bxc3 {[%clk 0:02:14.5]} 11. bxc3
{[%clk 0:02:46]} 11... Bd7 {[%clk 0:02:07.9]} 12. c4 {[%clk 0:02:45.2]} 12...
Qc6 {[%clk 0:01:45.4]} 13. Qe2 {[%clk 0:02:38.1]} 13... Nf6 {[%clk 0:01:40.9]}
14. Bb2 {[%clk 0:02:37.4]} 14... O-O {[%clk 0:01:31.3]} 15. Rab1 {[%clk
0:02:37.2]} 15... Rfe8 {[%clk 0:01:07.7]} 16. Bxf6 {[%clk 0:02:26.5]} 16... gxf6
{[%clk 0:01:06.4]} 17. Qg4+ {[%clk 0:02:27]} 17... Kf8 {[%clk 0:00:59.1]} 18.
Qh4 {[%clk 0:02:22.9]} 18... Ke7 {[%clk 0:00:56.9]} 19. Be4 {[%clk 0:02:18.3]}
19... Qxc4 {[%clk 0:00:54]} 20. Rfc1 {[%clk 0:02:17]} 20... Qa4 {[%clk
0:00:48.6]} 21. Rxb7 {[%clk 0:02:15.6]} 21... Rab8 {[%clk 0:00:41]} 22. Rbc7
{[%clk 0:02:07.3]} 22... Rbc8 {[%clk 0:00:34]} 23. Rxc8 {[%clk 0:02:05]} 23...
Rxc8 {[%clk 0:00:33.5]} 24. Re1 {[%clk 0:02:00.9]} 24... Rc4 {[%clk 0:00:29.1]}
25. f3 {[%clk 0:01:59.6]} 25... Bc6 {[%clk 0:00:28.2]} 26. Qxh7 {[%clk 0:01:57]}
26... Bxe4 {[%clk 0:00:27.3]} 27. fxe4 {[%clk 0:01:54.9]} 27... Qxa2 {[%clk
0:00:26.1]} 28. h3 {[%clk 0:01:49.2]} 28... Rc2 {[%clk 0:00:25.8]} 29. Qg7
{[%clk 0:01:49]} 29... a5 {[%clk 0:00:25.4]} 30. Rf1 {[%clk 0:01:49.1]} 30...
Qb2 {[%clk 0:00:24.2]} 31. h4 {[%clk 0:01:46.3]} 31... a4 {[%clk 0:00:24.1]} 32.
h5 {[%clk 0:01:42.6]} 32... a3 {[%clk 0:00:24.3]} 33. h6 {[%clk 0:01:41]} 33...
a2 {[%clk 0:00:24.5]} 34. h7 {[%clk 0:01:41]} 34... a1=Q {[%clk 0:00:22.8]} 35.
Rxa1 {[%clk 0:01:38.4]} 35... Qxa1+ {[%clk 0:00:21.4]} 36. Kh2 {[%clk 0:01:39]}
36... Rc1 {[%clk 0:00:19.1]} 37. h8=Q {[%clk 0:01:32.6]} 37... Rh1+ {[%clk
0:00:17.3]} 38. Kg3 {[%clk 0:01:33.5]} 38... Qe5+ {[%clk 0:00:14.4]} 39. Kf2
{[%clk 0:01:32.5]} 39... Rxh8 {[%clk 0:00:12.6]} 40. Qxh8 {[%clk 0:01:32]} 40...
Qf4+ {[%clk 0:00:12.5]} 41. Kg1 {[%clk 0:01:31.2]} 41... Qxe4 {[%clk 0:00:13.4]}
42. Qb8 {[%clk 0:01:29.7]} 42... Qd4+ {[%clk 0:00:13]} 43. Kf1 {[%clk
0:01:26.8]} 43... f5 {[%clk 0:00:13.9]} 44. Qc8 {[%clk 0:01:22.3]} 44... Qf4+
{[%clk 0:00:11.3]} 45. Kg1 {[%clk 0:01:21.6]} 45... Qd4+ {[%clk 0:00:11.2]} 46.
Kf1 {[%clk 0:01:20.6]} 46... Qf4+ {[%clk 0:00:10.7]} 1/2-1/2

[Event "Late-Titled-Tuesday-Blitz-March-05-2024"]
[Site "Chess.com"]
[Date "2024.03.05"]
[Round "1"]
[White "ural58"]
[Black "FabianoCaruana"]
[Result "0-1"]
[WhiteElo "2524"]
[BlackElo "3057"]
[TimeControl "180+1"]
[EndTime "14:06:24 PST"]
[Termination "FabianoCaruana won by resignation"]

1. e4 {[%clk 0:02:48.8]} 1... e6 {[%clk 0:02:59.7]} 2. d4 {[%clk 0:02:47.8]}
2... d5 {[%clk 0:03:00.2]} 3. Nc3 {[%clk 0:02:47.5]} 3... Nf6 {[%clk 0:02:59.5]}
4. Bg5 {[%clk 0:02:45.2]} 4... dxe4 {[%clk 0:02:59.7]} 5. Nxe4 {[%clk
0:02:41.2]} 5... Be7 {[%clk 0:03:00.2]} 6. Nxf6+ {[%clk 0:02:37]} 6... Bxf6
{[%clk 0:02:59.8]} 7. Bxf6 {[%clk 0:02:36.9]} 7... Qxf6 {[%clk 0:03:00.7]} 8.
Nf3 {[%clk 0:02:33]} 8... Bd7 {[%clk 0:02:59.9]} 9. Qd2 {[%clk 0:02:26.3]} 9...
c5 {[%clk 0:02:50.5]} 10. O-O-O {[%clk 0:02:24.2]} 10... cxd4 {[%clk 0:02:49.5]}
11. Qxd4 {[%clk 0:02:18.3]} 11... Qxd4 {[%clk 0:02:48.5]} 12. Nxd4 {[%clk
0:02:17.6]} 12... Ke7 {[%clk 0:02:47.8]} 13. f4 {[%clk 0:02:16.4]} 13... Rd8
{[%clk 0:02:40.9]} 14. Be2 {[%clk 0:02:13.3]} 14... Nc6 {[%clk 0:02:38.2]} 15.
Bf3 {[%clk 0:02:11.7]} 15... Nxd4 {[%clk 0:02:10.3]} 16. Rxd4 {[%clk 0:02:11.3]}
16... Rab8 {[%clk 0:02:11]} 17. Rhd1 {[%clk 0:02:09.7]} 17... b6 {[%clk
0:02:10.2]} 18. c4 {[%clk 0:02:06.3]} 18... a5 {[%clk 0:02:08.2]} 19. Kc2 {[%clk
0:02:04.4]} 19... Ba4+ {[%clk 0:02:06.6]} 20. b3 {[%clk 0:02:04.2]} 20... Rxd4
{[%clk 0:02:07.1]} 21. Rxd4 {[%clk 0:02:04.3]} 21... Bd7 {[%clk 0:02:06.5]} 22.
Kc3 {[%clk 0:02:03.7]} 22... Rc8 {[%clk 0:02:01.9]} 23. g3 {[%clk 0:01:58.7]}
23... f6 {[%clk 0:02:00.6]} 24. a3 {[%clk 0:01:56.2]} 24... Be8 {[%clk
0:01:56.2]} 25. b4 {[%clk 0:01:53]} 25... axb4+ {[%clk 0:01:56.1]} 26. axb4
{[%clk 0:01:52.9]} 26... Rc7 {[%clk 0:01:53.4]} 27. Rd2 {[%clk 0:01:40.1]} 27...
Ra7 {[%clk 0:01:52.5]} 28. Kb3 {[%clk 0:01:28.4]} 28... Bg6 {[%clk 0:00:57.9]}
29. c5 {[%clk 0:01:21.8]} 29... bxc5 {[%clk 0:00:55.9]} 30. bxc5 {[%clk
0:01:22]} 30... e5 {[%clk 0:00:52.8]} 31. fxe5 {[%clk 0:01:21.6]} 31... fxe5
{[%clk 0:00:53.7]} 32. Bd5 {[%clk 0:01:17]} 32... Be8 {[%clk 0:00:34]} 33. Be4
{[%clk 0:01:09.9]} 33... h6 {[%clk 0:00:27.7]} 34. Rd5 {[%clk 0:01:08.6]} 34...
Bf7 {[%clk 0:00:27]} 35. Kb4 {[%clk 0:01:06.9]} 35... Bxd5 {[%clk 0:00:27.1]}
36. Bxd5 {[%clk 0:01:07.5]} 36... Kd7 {[%clk 0:00:27.2]} 37. Kc4 {[%clk
0:01:05.8]} 37... Ra4+ {[%clk 0:00:26.6]} 38. Kc3 {[%clk 0:01:04.7]} 38... Rd4
{[%clk 0:00:26.3]} 39. Bf3 {[%clk 0:01:02.1]} 39... Kc7 {[%clk 0:00:26.6]} 40.
Be2 {[%clk 0:00:54.3]} 40... Kc6 {[%clk 0:00:26.4]} 0-1

[Event "Late-Titled-Tuesday-Blitz-March-05-2024"]
[Site "Chess.com"]
[Date "2024.03.05"]
[Round "1"]
[White "KorolDimitriy75"]
[Black "mac0504"]
[Result "0-1"]
[WhiteElo "2424"]
[BlackElo "2722"]
[TimeControl "180+1"]
[EndTime "14:06:25 PST"]
[Termination "mac0504 won on time"]

1. d4 {[%clk 0:03:00.9]} 1... Nf6 {[%clk 0:03:00.1]} 2. c4 {[%clk 0:03:01]} 2...
g6 {[%clk 0:03:00.5]} 3. Nc3 {[%clk 0:03:01.5]} 3... Bg7 {[%clk 0:03:01.1]} 4.
e4 {[%clk 0:03:01.1]} 4... O-O {[%clk 0:03:01.9]} 5. Nf3 {[%clk 0:03:01.4]} 5...
d6 {[%clk 0:03:02.6]} 6. Be2 {[%clk 0:03:02.2]} 6... Nc6 {[%clk 0:03:03]} 7. d5
{[%clk 0:03:01.5]} 7... Nb8 {[%clk 0:03:03.4]} 8. O-O {[%clk 0:03:01.4]} 8... c6
{[%clk 0:03:04.2]} 9. Re1 {[%clk 0:02:49]} 9... Na6 {[%clk 0:03:04.4]} 10. Bg5
{[%clk 0:02:43.9]} 10... Bg4 {[%clk 0:03:04.6]} 11. h3 {[%clk 0:02:19.7]} 11...
Bxf3 {[%clk 0:03:04.1]} 12. Bxf3 {[%clk 0:02:20.6]} 12... h6 {[%clk 0:03:01.3]}
13. Bh4 {[%clk 0:02:05.9]} 13... cxd5 {[%clk 0:03:01.7]} 14. exd5 {[%clk
0:02:05.8]} 14... Rc8 {[%clk 0:02:59]} 15. Qe2 {[%clk 0:02:02.8]} 15... Re8
{[%clk 0:02:57.1]} 16. Rac1 {[%clk 0:01:59.7]} 16... Nc5 {[%clk 0:02:48.9]} 17.
b3 {[%clk 0:01:59.2]} 17... Qa5 {[%clk 0:02:42.6]} 18. Qd2 {[%clk 0:01:14.7]}
18... a6 {[%clk 0:02:34.2]} 19. Re2 {[%clk 0:00:58.7]} 19... b5 {[%clk
0:02:32.1]} 20. Bxf6 {[%clk 0:00:49.3]} 20... Bxf6 {[%clk 0:02:32.2]} 21. Ne4
{[%clk 0:00:49.1]} 21... Qxd2 {[%clk 0:02:18.9]} 22. Nxf6+ {[%clk 0:00:48.9]}
22... exf6 {[%clk 0:02:19.8]} 23. Rxd2 {[%clk 0:00:48.5]} 23... b4 {[%clk
0:02:12.4]} 24. g3 {[%clk 0:00:25.4]} 24... Kg7 {[%clk 0:02:12.5]} 25. h4 {[%clk
0:00:25.2]} 25... f5 {[%clk 0:02:13]} 26. Kg2 {[%clk 0:00:25.4]} 26... Kf6
{[%clk 0:02:13.6]} 27. Rdd1 {[%clk 0:00:21.6]} 27... Rc7 {[%clk 0:02:09.9]} 28.
Ra1 {[%clk 0:00:15.9]} 28... a5 {[%clk 0:02:06.2]} 29. Rdb1 {[%clk 0:00:13.7]}
29... g5 {[%clk 0:01:58.4]} 30. hxg5+ {[%clk 0:00:11.6]} 30... hxg5 {[%clk
0:01:59.3]} 31. a3 {[%clk 0:00:11.9]} 31... g4 {[%clk 0:01:19.4]} 32. Bd1 {[%clk
0:00:11.6]} 32... Rce7 {[%clk 0:01:14.6]} 33. axb4 {[%clk 0:00:10.5]} 33... axb4
{[%clk 0:01:15.5]} 34. Ra5 {[%clk 0:00:09.4]} 34... Rh8 {[%clk 0:01:08.6]} 35.
Rb5 {[%clk 0:00:08.9]} 35... Re1 {[%clk 0:01:09.2]} 36. Rb6 {[%clk 0:00:05.9]}
36... Reh1 {[%clk 0:01:05.3]} 37. Rxd6+ {[%clk 0:00:02.2]} 37... Ke5 {[%clk
0:01:06]} 0-1

[Event "Late-Titled-Tuesday-Blitz-March-05-2024"]
[Site "Chess.com"]
[Date "2024.03.05"]
[Round "1"]
[White "igorkovalenko"]
[Black "Lion_DL"]
[Result "1-0"]
[WhiteElo "2936"]
[BlackElo "2510"]
[TimeControl "180+1"]
[EndTime "14:06:27 PST"]
[Termination "igorkovalenko won by checkmate"]

1. e4 {[%clk 0:03:00.9]} 1... c5 {[%clk 0:03:00.1]} 2. Nc3 {[%clk 0:03:00.4]}
2... a6 {[%clk 0:02:59.7]} 3. g3 {[%clk 0:03:00.2]} 3... b5 {[%clk 0:02:58.7]}
4. Bg2 {[%clk 0:03:00.6]} 4... Bb7 {[%clk 0:02:59.4]} 5. Nge2 {[%clk 0:02:59.6]}
5... e6 {[%clk 0:02:59.3]} 6. O-O {[%clk 0:02:59.5]} 6... d5 {[%clk 0:02:58.5]}
7. exd5 {[%clk 0:02:58.9]} 7... exd5 {[%clk 0:02:59.4]} 8. Nf4 {[%clk
0:02:58.6]} 8... Nf6 {[%clk 0:02:58]} 9. Re1+ {[%clk 0:02:58.7]} 9... Be7 {[%clk
0:02:58.2]} 10. d4 {[%clk 0:02:58.5]} 10... c4 {[%clk 0:02:20.4]} 11. Bd2 {[%clk
0:02:31.4]} 11... O-O {[%clk 0:02:17]} 12. a3 {[%clk 0:02:24.1]} 12... Ra7
{[%clk 0:01:40.4]} 13. Qf3 {[%clk 0:02:20.6]} 13... b4 {[%clk 0:01:33.5]} 14.
axb4 {[%clk 0:02:17.2]} 14... Bxb4 {[%clk 0:01:34.4]} 15. Nh5 {[%clk 0:01:58.2]}
15... Nbd7 {[%clk 0:01:21.1]} 16. Bg5 {[%clk 0:01:56.6]} 16... Qb6 {[%clk
0:01:03.8]} 17. Nxf6+ {[%clk 0:01:42.8]} 17... Nxf6 {[%clk 0:01:04.7]} 18. Bxf6
{[%clk 0:01:43.1]} 18... Qxf6 {[%clk 0:01:03.6]} 19. Qxf6 {[%clk 0:01:43.3]}
19... gxf6 {[%clk 0:01:03.9]} 20. Re3 {[%clk 0:01:44]} 20... Rd8 {[%clk
0:01:00.7]} 21. Ne2 {[%clk 0:01:38.3]} 21... Bc6 {[%clk 0:00:52.8]} 22. Nf4
{[%clk 0:01:38.1]} 22... Bd2 {[%clk 0:00:46.6]} 23. Rf3 {[%clk 0:01:35.8]} 23...
Bxf4 {[%clk 0:00:40.2]} 24. Rxf4 {[%clk 0:01:36.7]} 24... Kg7 {[%clk 0:00:40.9]}
25. Rf5 {[%clk 0:01:16.2]} 25... a5 {[%clk 0:00:37.3]} 26. g4 {[%clk 0:01:07.4]}
26... a4 {[%clk 0:00:34.3]} 27. c3 {[%clk 0:01:06.5]} 27... Rb7 {[%clk
0:00:33.5]} 28. Ra2 {[%clk 0:01:06.5]} 28... Rdb8 {[%clk 0:00:27.9]} 29. Bxd5
{[%clk 0:01:06.3]} 29... Bxd5 {[%clk 0:00:28.4]} 30. Rxd5 {[%clk 0:01:07.2]}
30... Rxb2 {[%clk 0:00:28.4]} 31. Rxa4 {[%clk 0:01:07.8]} 31... Rc2 {[%clk
0:00:27]} 32. Rxc4 {[%clk 0:01:04.9]} 32... Rbb2 {[%clk 0:00:25.9]} 33. Rf5
{[%clk 0:01:04.9]} 33... Rb3 {[%clk 0:00:26.6]} 34. Rf3 {[%clk 0:01:04.8]} 34...
Kg6 {[%clk 0:00:19.8]} 35. Rc5 {[%clk 0:01:02.4]} 35... Kg7 {[%clk 0:00:14.9]}
36. h3 {[%clk 0:01:02.7]} 36... Kg6 {[%clk 0:00:14.8]} 37. Kg2 {[%clk
0:01:03.2]} 37... h6 {[%clk 0:00:15.5]} 38. Rc6 {[%clk 0:01:02.1]} 38... Kg5
{[%clk 0:00:14.9]} 39. Rcxf6 {[%clk 0:01:00.7]} 39... Rcxc3 {[%clk 0:00:14.2]}
40. R3f5+ {[%clk 0:01:01]} 40... Kh4 {[%clk 0:00:14]} 41. Rh5# {[%clk
0:01:01.9]} 1-0

[Event "Late-Titled-Tuesday-Blitz-March-05-2024"]
[Site "Chess.com"]
[Date "2024.03.05"]
[Round "1"]
[White "FMJoseHerrera"]
[Black "Defenstrator"]
[Result "1-0"]
[WhiteElo "2782"]
[BlackElo "2452"]
[TimeControl "180+1"]
[EndTime "14:06:32 PST"]
[Termination "FMJoseHerrera won by resignation"]

1. Nf3 {[%clk 0:03:00.9]} 1... e6 {[%clk 0:02:50]} 2. g3 {[%clk 0:03:01.8]} 2...
g5 {[%clk 0:02:45.9]} 3. h3 {[%clk 0:02:58.7]} 3... Bg7 {[%clk 0:02:43.9]} 4. d3
{[%clk 0:02:58.6]} 4... h6 {[%clk 0:02:38.4]} 5. Bg2 {[%clk 0:02:58.2]} 5... f5
{[%clk 0:02:25.7]} 6. Nc3 {[%clk 0:02:56.9]} 6... Nf6 {[%clk 0:02:24.4]} 7. e4
{[%clk 0:02:56.9]} 7... O-O {[%clk 0:02:23.3]} 8. Be3 {[%clk 0:02:54]} 8... d5
{[%clk 0:02:15.2]} 9. exf5 {[%clk 0:02:42.4]} 9... exf5 {[%clk 0:02:15]} 10. Qd2
{[%clk 0:02:43.1]} 10... Nc6 {[%clk 0:02:00.7]} 11. Ne2 {[%clk 0:02:30.4]} 11...
Re8 {[%clk 0:01:55.2]} 12. O-O-O {[%clk 0:02:29.2]} 12... Be6 {[%clk 0:01:40.4]}
13. Ned4 {[%clk 0:02:27.6]} 13... Bd7 {[%clk 0:01:35.6]} 14. Nb3 {[%clk
0:02:15.4]} 14... b6 {[%clk 0:01:32.2]} 15. Kb1 {[%clk 0:02:08.9]} 15... a5
{[%clk 0:01:33.1]} 16. h4 {[%clk 0:02:02.1]} 16... g4 {[%clk 0:01:20.7]} 17.
Nfd4 {[%clk 0:02:01.4]} 17... Nxd4 {[%clk 0:01:08.9]} 18. Nxd4 {[%clk
0:02:02.3]} 18... c5 {[%clk 0:01:08.7]} 19. Ne2 {[%clk 0:01:57.6]} 19... d4
{[%clk 0:01:04.3]} 20. Bxh6 {[%clk 0:01:45.1]} 20... Rxe2 {[%clk 0:00:56]} 21.
Qxe2 {[%clk 0:01:27.1]} 21... Bxh6 {[%clk 0:00:55.1]} 22. Bxa8 {[%clk
0:01:27.7]} 22... Qxa8 {[%clk 0:00:55.6]} 23. Qe7 {[%clk 0:01:28.4]} 23... Qc6
{[%clk 0:00:52.2]} 24. Rhe1 {[%clk 0:01:25.6]} 24... Bf8 {[%clk 0:00:45.9]} 25.
Qd8 {[%clk 0:01:25.8]} 25... Be6 {[%clk 0:00:44]} 26. Re5 {[%clk 0:01:15.8]}
26... Nd5 {[%clk 0:00:22]} 27. Rde1 {[%clk 0:01:09.3]} 27... Bf7 {[%clk
0:00:22.5]} 28. Rxf5 {[%clk 0:01:05.3]} 28... Nb4 {[%clk 0:00:13.8]} 29. Rg5+
{[%clk 0:01:02.3]} 29... Kh7 {[%clk 0:00:13.1]} 30. Qxf8 {[%clk 0:00:56.9]}
30... Bxa2+ {[%clk 0:00:12.5]} 31. Kc1 {[%clk 0:00:56.3]} 1-0